fUST/lending_fUST_20240618
["ID","MTS","AMOUNT","RATE_DAILY","PERIOD"]
[329784078,1718673039738,-500.0,0.00022498,2]
[329784079,1718673039748,-500.0,0.00022498,2]
[329784080,1718673039758,-500.0,0.00022498,2]
[329784081,1718673039768,-500.0,0.00022498,2]
[329784082,1718673039778,-500.0,0.00022549,2]
[329784083,1718673039788,-500.0,0.00022549,2]
[329784084,1718673039798,-500.0,0.00022549,2]
[329784085,1718673039811,-3439.61727122,0.00022771,2]
[329784097,1718673042839,-500.0,0.0002082,2]
[329784098,1718673042848,-500.0,0.00021094,2]
[329784099,1718673042858,-500.0,0.00021368,2]
[329784100,1718673042867,-500.0,0.00021642,2]
[329784101,1718673042877,-500.0,0.00021916,2]
[329784102,1718673042886,-500.0,0.0002219,2]
[329784103,1718673042897,-500.0,0.00022464,2]
[329784104,1718673042906,-303.57518612,0.00022738,2]
[329784105,1718673042918,-330.76481388,0.00022738,2]
[329784106,1718673042927,-950.343264,0.00022771,2]
[329784107,1718673042939,-2364.34936186,0.00022771,2]
[329784108,1718673042949,-500.0,0.00022772,2]
[329784109,1718673042959,-500.0,0.00022772,2]
[329784110,1718673042968,-500.0,0.00022772,2]
[329784111,1718673042977,-500.0,0.00022772,2]
[329784112,1718673042987,-500.0,0.00022772,2]
[329784113,1718673042998,-500.0,0.00022772,2]
[329784114,1718673043012,-500.0,0.00022772,2]
[329784115,1718673043021,-205.63,0.00022772,2]
[329784116,1718673043031,-500.0,0.00022772,2]
[329784117,1718673043040,-519.8,0.00022772,2]
[329784118,1718673043050,-354.75,0.00022772,2]
[329784119,1718673043060,-500.0,0.00022772,2]
[329784120,1718673043069,-533.38,0.00022823,2]
[329784121,1718673043080,-500.0,0.00022899,2]
[329784122,1718673043089,-168.63884618,0.000229,2]
[329784123,1718673043099,-160.41,0.000229,31]
[329784124,1718673043109,-5300.24544328,0.00022901,2]
[329784125,1718673043119,-166.666666,0.00022944,2]
[329784126,1718673043128,-154.92253873,0.00023,2]
[329784127,1718673043138,-1417.20004891,0.00023045,2]
[329784128,1718673043147,-375.84,0.00023046,2]
[329784129,1718673043156,-500.0,0.00023046,2]
[329784130,1718673043165,-500.0,0.00023046,2]
[329784131,1718673043175,-500.0,0.00023046,2]
[329784132,1718673043185,-500.0,0.00023046,2]
[329784133,1718673043195,-500.0,0.0002332,2]
[329784134,1718673043205,-500.0,0.0002332,2]
[329784135,1718673043215,-286.59957693,0.0002332,2]
[329784136,1718673043224,-500.0,0.0002332,2]
[329784137,1718673043233,-4265.13939849,0.00023354,2]
[329784138,1718673043247,-511.1056432,0.00023354,2]
[329784139,1718673043258,-524.00040159,0.00023354,2]
[329784140,1718673043268,-166.666666,0.00023456,2]
[329784142,1718673043278,-1153.87018004,0.00023508,2]
[329784143,1718673043287,-500.0,0.00023594,2]
[329784144,1718673043296,-500.0,0.00023594,2]
[329784145,1718673043306,-371.81,0.00023594,2]
[329784147,1718673043315,-328.76917624,0.00023598,2]
[329784180,1718673044310,-171.23082376,0.00023598,2]
[329784181,1718673044320,-280.80960211,0.00023805,2]
[329784182,1718673044330,-783.01957413,0.00023806,2]
[329784183,1718673044342,-1845.55,0.00023806,2]
[329784197,1718673130756,151.0,0.00015,2]
[329784198,1718673130780,188.86795153,0.00015,2]
[329784199,1718673130805,174.14558218,0.00015,2]
[329784200,1718673130828,158.23409006,0.00015,2]
[329784210,1718673890011,187.2064014,9.999e-05,2]
[329784216,1718674149199,-1976.78044713,0.00018079,2]
[329784217,1718674149221,-500.49382646,0.0001808,2]
[329784218,1718674149242,-500.0,0.0001808,2]
[329784219,1718674149264,-500.0,0.0001808,2]
[329784220,1718674149294,-500.0,0.0001808,2]
[329784221,1718674149315,-500.0,0.0001808,2]
[329784222,1718674149336,-500.0,0.0001808,2]
[329784223,1718674149356,-500.0,0.0001808,2]
[329784224,1718674149377,-500.0,0.0001808,2]
[329784225,1718674149399,-500.0,0.0001808,2]
[329784226,1718674149423,-500.0,0.0001808,2]
[329784227,1718674149443,-500.0,0.0001808,2]
[329784228,1718674149464,-500.0,0.0001808,2]
[329784229,1718674149486,-500.0,0.0001808,2]
[329784230,1718674149507,-500.0,0.0001808,2]
[329784231,1718674149529,-500.0,0.0001808,2]
[329784232,1718674149560,-500.0,0.0001808,2]
[329784233,1718674149580,-500.0,0.0001808,2]
[329784234,1718674149603,-865.40263503,0.00018254,2]
[329784235,1718674149623,-20000.0,0.00018353,2]
[329784236,1718674149644,-500.0,0.00018354,2]
[329784237,1718674149667,-500.0,0.00018354,2]
[329784238,1718674149690,-500.0,0.00018354,2]
[329784239,1718674149712,-535.2386899,0.00018354,2]
[329784240,1718674149735,-500.0,0.00018354,2]
[329784241,1718674149756,-207.00312676,0.00018354,2]
[329784242,1718674149779,-500.0,0.00018354,2]
[329784243,1718674149811,-500.0,0.00018627,2]
[329784244,1718674149832,-509.8123844,0.00018627,2]
[329784245,1718674149856,-500.0,0.00018627,2]
[329784246,1718674149878,-500.0,0.00018627,2]
[329784247,1718674149902,-500.0,0.00018627,2]
[329784248,1718674149928,-794.71718349,0.000189,2]
[329784249,1718674149958,-500.0,0.00018901,2]
[329784250,1718674149987,-500.0,0.00018901,2]
[329784251,1718674150015,-500.0,0.00018901,2]
[329784252,1718674150047,-500.0,0.00019175,2]
[329784253,1718674150073,-500.0,0.00019175,2]
[329784254,1718674150098,-10.56554728,0.00019175,2]
[329784256,1718674168140,-476.97437791,0.00018078,2]
[329784257,1718674168166,-500.0,0.00018627,2]
[329784258,1718674168191,-500.0,0.00018627,2]
[329784259,1718674168223,-489.43445272,0.00019175,2]
[329784260,1718674168251,-500.0,0.00019449,2]
[329784261,1718674168274,-500.0,0.00019449,2]
[329784262,1718674168306,-500.0,0.00019449,2]
[329784263,1718674168330,-156.0053345,0.00019721,2]
[329784264,1718674168355,-33.5938541,0.00019723,2]
[329784265,1718674174159,-466.4061459,0.00019723,2]
[329784266,1718674174184,-500.0,0.00019723,2]
[329784267,1718674174209,-500.0,0.00019723,2]
[329784268,1718674174234,-500.0,0.00019997,2]
[329784269,1718674174259,-262.02,0.00019997,2]
[329784270,1718674174285,-500.0,0.00019997,2]
[329784271,1718674174317,-500.0,0.00019999,2]
[329784272,1718674174342,-500.0,0.00019999,2]
[329784273,1718674174366,-500.0,0.00019999,2]
[329784274,1718674174390,-500.0,0.00019999,2]
[329784275,1718674174418,-500.0,0.00019999,2]
[329784276,1718674174443,-500.0,0.00019999,2]
[329784277,1718674174469,-500.0,0.00019999,2]
[329784278,1718674174495,-500.0,0.00019999,2]
[329784279,1718674174522,-500.0,0.00019999,2]
[329784280,1718674174556,-500.0,0.00019999,2]
[329784281,1718674174584,-500.0,0.00019999,2]
[329784282,1718674174608,-500.0,0.00019999,2]
[329784283,1718674174632,-500.0,0.00019999,2]
[329784284,1718674180145,154.82902235,0.00018627,2]
[329784288,1718674235612,-250.81599999,0.00018627,2]
[329784495,1718674242178,-94.35497766,0.00018627,2]
[329784497,1718674242188,-500.0,0.00018627,2]
[329784499,1718674242200,-558.23604287,0.00018627,2]
[329784501,1718674242210,-500.0,0.00018627,2]
[329784503,1718674242220,-500.0,0.00018627,2]
[329784505,1718674242230,-500.0,0.00018901,2]
[329784507,1718674242240,-500.0,0.00018901,2]
[329784509,1718674242250,-452.83916424,0.00018901,2]
[329784511,1718674242260,-500.0,0.00018901,2]
[329784513,1718674242270,-500.0,0.00019174,2]
[329784515,1718674242279,-519.53098381,0.00019174,2]
[329784517,1718674242289,-197.01069265,0.00019174,2]
[329784519,1718674242299,-500.0,0.00019175,2]
[329784521,1718674242308,-464.28554313,0.00019175,2]
[329784523,1718674242318,-500.0,0.00019175,2]
[329784525,1718674242334,-500.0,0.00019448,2]
[329784527,1718674242343,-354.43,0.00019449,2]
[329784529,1718674242353,-500.0,0.00019449,2]
[329784531,1718674242362,-500.0,0.00019722,2]
[329784533,1718674242371,-521.29475015,0.00019723,2]
[329784535,1718674242380,-500.0,0.00019996,2]
[329784537,1718674242391,-500.0,0.00019999,2]
[329784539,1718674242400,-537.8966743,0.00019999,2]
[329784541,1718674242409,-1116.27702655,0.0002,2]
[329784543,1718674242419,-292.70877686,0.0002,2]
[329784545,1718674242428,-2789.91126009,0.0002,2]
[329784557,1718674242895,-552.24530007,0.0002,2]
[329784560,1718674242908,-823.53664196,0.0002,2]
[329784563,1718674242917,-500.0,0.0002027,2]
[329784566,1718674242927,-500.0,0.00020271,2]
[329784570,1718674242937,-500.0,0.00020273,2]
[329784574,1718674242946,-500.0,0.00020273,2]
[329784577,1718674242955,-500.0,0.00020273,2]
[329784580,1718674242965,-500.0,0.00020544,2]
[329784582,1718674242975,-308.93,0.00020545,2]
[329784584,1718674242984,-500.0,0.00020547,2]
[329784586,1718674242994,-500.0,0.00020547,2]
[329784588,1718674243004,-500.0,0.00020818,2]
[329784589,1718674243013,-500.0,0.00020821,2]
[329784590,1718674243023,-500.0,0.00020821,2]
[329784591,1718674243032,-500.0,0.00021092,2]
[329784592,1718674243041,-293.1032436,0.00021095,2]
[329784593,1718674243051,-191.15751581,0.00021095,2]
[329784594,1718674243060,-500.0,0.00021366,2]
[329784595,1718674243069,-500.0,0.0002164,2]
[329784596,1718674243086,-565.36813964,0.00021914,2]
[329784597,1718674243095,-166.666666,0.00021918,2]
[329784598,1718674243105,-166.666666,0.00022431,2]
[329784599,1718674243113,-526.40202534,0.00022497,2]
[329784600,1718674243122,-500.0,0.00022497,2]
[329784601,1718674243131,-500.0,0.00022497,2]
[329784602,1718674243140,-500.0,0.00022497,2]
[329784603,1718674243148,-500.0,0.00022497,2]
[329784604,1718674243157,-500.0,0.00022497,2]
[329784606,1718674243166,-346.62127947,0.00022497,2]
[329784608,1718674243175,-500.0,0.00022497,2]
[329784610,1718674243184,-341.33,0.00022497,2]
[329784612,1718674243194,-500.0,0.00022497,2]
[329784614,1718674243204,-500.0,0.00022497,2]
[329784616,1718674243214,-569.78,0.00022498,2]
[329784618,1718674243224,-513.73701891,0.00022498,2]
[329784620,1718674243233,-500.0,0.00022498,2]
[329784622,1718674243242,-636.91946243,0.00022498,2]
[329784624,1718674243252,-500.0,0.00022498,2]
[329784626,1718674243262,-502.24681462,0.00022498,2]
[329784628,1718674243272,-500.0,0.00022498,2]
[329784630,1718674243282,-500.0,0.00022498,2]
[329784632,1718674243292,-500.0,0.00022498,2]
[329784634,1718674243301,-500.0,0.00022498,2]
[329784636,1718674243311,-500.0,0.00022498,2]
[329784638,1718674243320,-500.0,0.00022498,2]
[329784640,1718674243334,-500.0,0.00022498,2]
[329784642,1718674243344,-500.0,0.00022498,2]
[329784644,1718674243354,-500.0,0.00022498,2]
[329784646,1718674243363,-500.0,0.00022498,2]
[329784648,1718674243372,-500.0,0.00022498,2]
[329784650,1718674243381,-500.0,0.00022498,2]
[329784652,1718674243390,-500.0,0.00022498,2]
[329784654,1718674243400,-6754.30989708,0.0002255,2]
[329784656,1718674243409,-500.0,0.00022771,2]
[329784658,1718674243418,-174.14558218,0.00022772,2]
[329784660,1718674243430,-151.0,0.00022889,4]
[329784662,1718674243440,-166.666666,0.00022944,2]
[329784664,1718674243449,-154.90705577,0.00023,2]
[329784666,1718674243458,-1181.00004076,0.00023012,2]
[329784668,1718674243467,-500.0,0.00023045,2]
[329784670,1718674243477,-865.40263503,0.00023068,2]
[329784672,1718674243486,-9828.99930245,0.00023307,2]
[329784674,1718674243495,-5271.26768358,0.00023308,2]
[329784676,1718674243504,-500.0,0.00023319,2]
[329784678,1718674243515,-166.666666,0.00023456,2]
[329784681,1718674243526,-500.0,0.00023593,2]
[329784683,1718674243535,-151.0,0.00023645,5]
[329784684,1718674243544,-160.0,0.000238,2]
[329784686,1718674243554,-500.0,0.00023802,2]
[329784688,1718674243562,-500.0,0.00023803,2]
[329784690,1718674243572,-500.0,0.00023803,2]
[329784692,1718674243589,-500.0,0.00023803,2]
[329784694,1718674243598,-500.0,0.00023803,2]
[329784696,1718674243608,-541.75930841,0.00023803,2]
[329784699,1718674243620,-500.0,0.00023803,2]
[329784706,1718674243633,-500.0,0.00023803,2]
[329784713,1718674243649,-500.0,0.00023803,2]
[329784723,1718674243660,-500.0,0.00023803,2]
[329784732,1718674243670,-500.0,0.00023803,2]
[329784741,1718674243680,-500.0,0.00023803,2]
[329784749,1718674243689,-500.0,0.00023803,2]
[329784758,1718674243699,-500.0,0.00023803,2]
[329784763,1718674243709,-500.0,0.00023803,2]
[329784769,1718674243718,-447.04823096,0.00023803,2]
[329784775,1718674243727,-500.0,0.00023803,2]
[329784779,1718674243736,-500.0,0.00023803,2]
[329784785,1718674243745,-500.0,0.00023803,2]
[329784789,1718674243754,-500.0,0.00023803,2]
[329784794,1718674243762,-500.0,0.00023803,2]
[329784797,1718674243769,-500.0,0.00023803,2]
[329784802,1718674243778,-500.0,0.00023803,2]
[329784805,1718674243786,-500.0,0.00023803,2]
[329784809,1718674243795,-500.0,0.00023803,2]
[329784812,1718674243804,-500.0,0.00023803,2]
[329784815,1718674243813,-500.0,0.00023803,2]
[329784818,1718674243822,-500.0,0.00023803,2]
[329784820,1718674243838,-364.20641032,0.00023803,2]
[329784823,1718674243846,-244.88562426,0.00023803,2]
[329784827,1718674243855,-500.0,0.00023803,2]
[329784830,1718674243864,-305.78318971,0.00023803,2]
[329784833,1718674243872,-500.0,0.00023803,2]
[329784836,1718674243882,-500.0,0.00023803,2]
[329784839,1718674243891,-500.0,0.00023803,2]
[329784842,1718674243899,-500.0,0.00023803,2]
[329784845,1718674243907,-335.30690628,0.00023803,2]
[329784848,1718674243915,-550.59009883,0.00023803,2]
[329784851,1718674243923,-2671.67586915,0.00023806,2]
[329784854,1718674243932,-160.54342653,0.00023806,2]
[329784856,1718674243940,-432.35477748,0.00023806,2]
[329784859,1718674243949,-5458.47893038,0.00023806,2]
[329784862,1718674243958,-1756.42646347,0.00023806,2]
[329784865,1718674243967,-500.0,0.00023867,2]
[329784868,1718674243976,-794.71718349,0.000239,2]
[329784871,1718674243985,-166.666666,0.00023969,2]
[329784873,1718674243995,-285.0,0.00024,2]
[329784875,1718674244004,-638.32,0.00024077,2]
[329784877,1718674244014,-500.0,0.00024077,2]
[329784879,1718674244023,-500.0,0.00024141,2]
[329784881,1718674244033,-5300.24544328,0.00024258,2]
[329784883,1718674244042,-151.0,0.00024401,5]
[329784885,1718674244051,-159.07939901,0.00024411,3]
[329784887,1718674244060,-500.0,0.00024415,2]
[329784889,1718674244069,-150.87929656,0.00024432,2]
[329784891,1718674244085,-166.666666,0.00024482,2]
[329784893,1718674244095,-500.0,0.00024624,2]
[329784895,1718674244104,-380.0,0.00024658,2]
[329784897,1718674244114,-200.0,0.00024658,15]
[329784899,1718674244124,-156.0053345,0.00024678,2]
[329784901,1718674244134,-78220.46,0.00024681,3]
[329784903,1718674244143,-353.04,0.00024689,2]
[329784905,1718674244153,-465.81926256,0.0002469,2]
[329784907,1718674244162,-263.58307563,0.0002469,2]
[329784909,1718674244171,-531.01790299,0.00024691,13]
[329784911,1718674244181,-93864.55,0.00024691,3]
[329784913,1718674244191,-15207.31739866,0.00024701,3]
[329784916,1718674244206,-65877.0068745,0.00024701,3]
[329784988,1718674245129,-477.01771694,0.00023306,2]
[329784994,1718674245139,-518.73243059,0.00024701,3]
[329785000,1718674245151,-618.74622242,0.00024701,3]
[329785004,1718674245163,-2165.41012487,0.00024701,3]
[329785008,1718674245175,-577.70507481,0.00024701,3]
[329785084,1718674245907,-500.0,0.00019999,2]
[329785088,1718674245917,-206.68545998,0.00020273,2]
[329785093,1718674245927,-27672.54187415,0.00024701,3]
[329785096,1718674245937,-5300.24544328,0.00024711,2]
[329785102,1718674245947,-500.0,0.00024997,2]
[329785106,1718674245956,-339.15500195,0.00024997,2]
[329785110,1718674245966,-300.0,0.00025,2]
[329785113,1718674245975,-300.0,0.00025,2]
[329785116,1718674245985,-300.0,0.00025,2]
[329785119,1718674245994,-300.0,0.00025,2]
[329785122,1718674246003,-300.0,0.00025,2]
[329785125,1718674246013,-300.0,0.00025,2]
[329785128,1718674246022,-177.0,0.00025,2]
[329785131,1718674246031,-1389.14908535,0.00025,2]
[329785134,1718674246040,-1212.90093491,0.00025,3]
[329785137,1718674246049,-1858.44416491,0.00025,30]
[329785140,1718674246059,-151.0,0.00025158,6]
[329785143,1718674246068,-1819.30814385,0.00025161,2]
[329785146,1718674246083,-5300.24544328,0.00025163,2]
[329785149,1718674246092,-275.84951764,0.00025203,2]
[329785152,1718674246101,-500.0,0.00025271,2]
[329785154,1718674246110,-669.84983375,0.00025431,2]
[329785157,1718674246120,-500.0,0.00025545,2]
[329785159,1718674246129,-622.4924917,0.00025585,2]
[329785162,1718674246138,-300.0,0.000256,2]
[329785165,1718674246147,-5300.24544328,0.00025615,2]
[329785168,1718674246157,-306.9737281,0.00025714,2]
[329785171,1718674246166,-153.0,0.00025714,2]
[329785174,1718674246175,-500.0,0.00025819,2]
[329785177,1718674246185,-151.0,0.00025914,6]
[329785179,1718674246194,-500.0,0.00025925,2]
[329785181,1718674246203,-318.443846,0.00025973,2]
[329785183,1718674246213,-5300.24544328,0.00026068,2]
[329785185,1718674246222,-500.0,0.00026093,2]
[329785187,1718674246232,-500.0,0.00026367,2]
[329785189,1718674246241,-238.981946,0.00026425,2]
[329785191,1718674246251,-533.34788929,0.000265,2]
[329785193,1718674246264,-2466.65211071,0.000265,2]
[329785195,1718674246274,-804.1796434,0.00026508,2]
[329785197,1718674246284,-3000.0,0.0002651,2]
[329785199,1718674246293,-5300.24544328,0.0002652,2]
[329785201,1718674246302,-3000.0,0.0002652,2]
[329785203,1718674246312,-721.70560726,0.00026529,2]
[329785205,1718674246321,-1421.96696969,0.0002653,2]
[329785651,1718674250664,-419.63493664,0.0002,2]
[329785653,1718674250673,-284.39740733,0.0002653,2]
[329790702,1718674319134,157.7941021,0.00017429,2]
[329790711,1718674807774,5006.68325928,0.00013461,2]
[329790712,1718674878154,154.8915759,9.999e-05,2]
[329790714,1718675152202,-154.81422293,0.0001761,2]
[329790715,1718675152224,-68.03249876,0.0001761,2]
[329790716,1718675242124,-151.0,0.0001761,2]
[329790717,1718675251118,-155.0,0.0001761,2]
[329790718,1718675348343,-154.82968734,0.00017609,2]
[329790719,1718675348364,-10202.35863397,0.0001761,2]
[329790720,1718675348384,-25961.53450034,0.00017611,2]
[329790721,1718675348411,-20000.0,0.00018081,2]
[329790722,1718675348431,-265.70269551,0.000189,2]
[329790723,1718675348453,-2746.23,0.00019,2]
[329790724,1718675348473,-215.083751,0.00019178,2]
[329790725,1718675348494,-156.17936081,0.00019998,2]
[329790726,1718675348517,-500.0,0.00019999,2]
[329790727,1718675348542,-500.0,0.00019999,2]
[329790728,1718675348562,-633.29,0.00019999,2]
[329790729,1718675348583,-500.0,0.00019999,2]
[329790730,1718675348603,-306.63121603,0.00019999,2]
[329790731,1718675348625,-510.64516183,0.00019999,2]
[329790732,1718675348651,-504.81785567,0.00019999,2]
[329790733,1718675348676,-500.0,0.00019999,2]
[329790734,1718675348699,-218.62314558,0.00019999,2]
[329790735,1718675348722,-500.0,0.00019999,2]
[329790736,1718675348745,-500.0,0.00019999,2]
[329790737,1718675348767,-164.60318757,0.00019999,2]
[329790738,1718675348787,-4165.79262619,0.0002,2]
[329790739,1718675348808,-4391.16215198,0.0002,2]
[329790740,1718675351162,-70616.03853595,0.0002,2]
[329790741,1718675351185,-292.71417926,0.0002,2]
[329790742,1718675351207,-1116.29745396,0.0002,2]
[329790743,1718675351228,-276.51758062,0.0002,2]
[329790747,1718675371162,-520.57234889,0.00019999,2]
[329790748,1718675371183,-53.15083993,0.0002,2]
[329790749,1718675371208,-217.59,0.00020273,2]
[329790750,1718675371230,-500.0,0.00020273,2]
[329790751,1718675371252,-500.0,0.00020273,2]
[329790752,1718675371274,-500.0,0.00020273,2]
[329790753,1718675371297,-500.0,0.00020273,2]
[329790754,1718675371318,-500.0,0.00020547,2]
[329790755,1718675371341,-500.0,0.00020547,2]
[329790756,1718675371369,-600.96216271,0.00020547,2]
[329790757,1718675371392,-583.03424836,0.00020547,2]
[329790759,1718675426321,225.47221433,0.00019999,2]
[329790821,1718675435338,-274.52778567,0.00019999,2]
[329790822,1718675435347,-50.47221433,0.00020821,2]
[329790848,1718675435907,-318.90828956,0.00020821,2]
[329790851,1718675435917,-252.88171044,0.00020821,2]
[329790962,1718675441397,-247.11828956,0.00020821,2]
[329790963,1718675441407,-341.83932481,0.00021095,2]
[329790964,1718675441416,-292.71417926,0.00021916,2]
[329790965,1718675441426,-81.40680391,0.00021917,2]
[329791151,1718675443580,-520.8381804,0.00019999,2]
[329791345,1718675444349,-11.72977633,0.00019999,2]
[329791346,1718675444365,-432.35481656,0.00020547,2]
[329791347,1718675444374,-73.43835094,0.00021917,2]
[329791348,1718675444383,-166.666666,0.00021918,2]
[329791349,1718675444393,-446.45984616,0.00022398,2]
[329791351,1718675444403,-166.666666,0.00022431,2]
[329791353,1718675444412,-4165.79262619,0.00022497,2]
[329791355,1718675444423,-1116.29745396,0.00022497,2]
[329791357,1718675444432,-502.35778573,0.00022497,2]
[329791359,1718675444442,-157.25337135,0.00022497,2]
[329791361,1718675444452,-935.98264078,0.00022498,2]
[329791363,1718675444464,-422.96738944,0.00022498,2]
[329791365,1718675444474,-38464.50384442,0.00022499,3]
[329791367,1718675444483,-302.946429,0.000225,10]
[329791369,1718675444493,-621.28308872,0.00022549,2]
[329791371,1718675444502,-483.18390475,0.00022549,2]
[329791373,1718675444511,-500.0,0.00022549,2]
[329791375,1718675444522,-6755.06835235,0.0002255,2]
[329791377,1718675444531,-500.0,0.00022823,2]
[329791379,1718675444541,-166.666666,0.00022944,2]
[329791381,1718675444551,-240.75730761,0.00023,2]
[329791383,1718675444560,-1181.00004076,0.00023,2]
[329791385,1718675444569,-500.0,0.00023097,2]
[329791387,1718675444579,-500.0,0.00023371,2]
[329791389,1718675444588,-166.666666,0.00023456,2]
[329791400,1718675444598,-384.79399836,0.00023645,2]
[329791410,1718675444610,-151.0,0.00023684,5]
[329791416,1718675444621,-265.70269551,0.000239,2]
[329791422,1718675444630,-166.666666,0.00023969,2]
[329791432,1718675444640,-285.0,0.00024,2]
[329791440,1718675444650,-151.0,0.0002443,5]
[329791449,1718675444661,-166.666666,0.00024482,2]
[329791459,1718675444671,-200.0,0.00024657,7]
[329791468,1718675444681,-200.0,0.00024657,7]
[329791475,1718675444690,-200.0,0.00024657,7]
[329791483,1718675444700,-200.0,0.00024657,7]
[329791491,1718675444712,-200.0,0.00024657,7]
[329791499,1718675444722,-200.0,0.00024657,7]
[329791508,1718675444732,-200.0,0.00024657,7]
[329791515,1718675444744,-200.0,0.00024657,7]
[329791521,1718675444753,-200.0,0.00024657,7]
[329791525,1718675444764,-200.0,0.00024657,7]
[329791531,1718675444774,-200.0,0.00024657,7]
[329791536,1718675444784,-200.0,0.00024657,7]
[329791542,1718675444794,-200.0,0.00024657,7]
[329791549,1718675444804,-200.0,0.00024657,7]
[329791553,1718675444814,-200.0,0.00024657,7]
[329791556,1718675444823,-243.88441664,0.00024657,7]
[329791558,1718675444833,-380.0,0.00024658,2]
[329791561,1718675444843,-129.17362861,0.00024658,15]
[329791565,1718675444866,-70.82637139,0.00024658,15]
[329791568,1718675444876,-267.89362861,0.00024826,2]
[329791571,1718675444888,-161.20801459,0.00024826,2]
[329791574,1718675444900,-578.48998531,0.00025,2]
[329791578,1718675444926,-193.25950655,0.00025,2]
[329791579,1718675444936,-151.0,0.00025177,6]
[329791582,1718675444946,-194.0,0.0002567,17]
[329791583,1718675444956,-151.0,0.00025923,6]
[329791585,1718675444966,-151.0,0.00025923,6]
[329791588,1718675444977,-302.521653,0.00025973,2]
[329791589,1718675444987,-310.1024178,0.00026058,2]
[329791591,1718675444996,-732.12499425,0.00026155,2]
[329791594,1718675445010,-4539.84171398,0.00026155,2]
[329791596,1718675445020,-215.083751,0.00026388,2]
[329791598,1718675445031,-160.0,0.00026415,3]
[329791600,1718675445040,-270.08554175,0.00026415,5]
[329791602,1718675445051,-1000.0,0.00026416,2]
[329791604,1718675445060,-399.16534881,0.00026497,2]
[329791606,1718675445073,-600.83465119,0.00026497,2]
[329791608,1718675445083,-98.64840865,0.000265,2]
[329792269,1718675451697,-582.84598782,0.00019999,2]
[329792272,1718675451707,-510.53279462,0.00019999,2]
[329792275,1718675451717,-505.36070371,0.00019999,2]
[329792277,1718675451727,-500.0,0.00019999,2]
[329792279,1718675451736,-984.24392881,0.00022495,4]
[329792281,1718675451746,-465.52567539,0.00022497,2]
[329792283,1718675451756,-81.35159135,0.000265,2]
[329792285,1718675451766,-160.0,0.000265,2]
[329792288,1718675451786,-2688.38931683,0.000265,2]
[329792290,1718675451801,-311.61068317,0.000265,2]
[329792292,1718675451811,-337.08931683,0.0002651,2]
[329792294,1718675451824,-1264.61744963,0.0002651,2]
[329792922,1718675582447,2645.4033021,9.999e-05,2]
[329792933,1718676356207,-1374.07519413,0.000179,2]
[329792936,1718676437135,-170.34792105,0.000179,2]
[329792937,1718676444108,-151.0,0.000179,2]
[329792938,1718676451204,-235.10938759,0.000179,2]
[329792939,1718676451226,-43.01766118,0.00018078,2]
[329792940,1718676517905,-434.00005576,0.00018078,2]
[329792941,1718676517938,-49.79173308,0.00018079,2]
[329792942,1718676517973,-250.20826692,0.00018079,2]
[329792943,1718676518005,-233.58352192,0.00018079,2]
[329792944,1718676518048,-66.41647808,0.00018079,2]
[329792945,1718676518080,-417.37531076,0.0001808,2]
[329792946,1718676518121,-82.62468924,0.0001808,2]
[329792947,1718676518153,-401.1670996,0.0001808,2]
[329792948,1718676518194,-111.97793602,0.0001808,2]
[329792949,1718676518227,-107.31009204,0.0001808,2]